{"text_format":"1","workbook":"xlsx","n_sheets":5,"sheets":["INFO","Brann","Nødlys","Talevarsling","Slukkeanlegg"],"not_rendered":{"charts":0,"images":1,"macros":0,"external_links":0,"defined_names":0,"comments":0,"pivot_tables":0},"unopened":[],"bounds":{"document_bytes":16777216,"sheet_cells":100000,"rows_first":2000,"rows_last":500,"rows_between":2000,"halvings":0,"cell_chars":16384,"cell_head_chars":4096},"cells_cut":0,"cells_raw":0,"read":"whole","date_system":"1900"}

{"sheet":"INFO","index":0,"n_rows":20,"n_cols":1,"rows_kept":20,"cut":false,"hidden":false,"merged":[[19,0,19,48],[5,7,5,25],[5,26,5,48],[6,7,6,25],[6,26,6,48],[7,7,7,25],[7,26,7,48],[14,7,14,48],[12,0,12,6],[8,7,8,48],[11,7,11,48],[12,7,12,48],[13,7,13,48],[17,0,17,48],[18,0,18,48],[7,0,7,6],[3,0,3,32],[4,0,4,6],[4,7,4,48],[5,0,5,6],[6,0,6,6],[13,0,13,6],[14,0,14,6],[8,0,8,6],[10,0,10,32],[11,0,11,6]]}
["BESTILLING AV IDRIFTSETTELSE"]
["Fyll inn i de GRØNNE feltene. De RØDE feltene blir fylt ut automatisk."]
[]
["Kundeopplysninger"]
["Firma:"]
["Saksbh/BAS"]
["Telefon:"]
["Mail:"]
["Ordrenr:"]
[]
["Anleggsopplysninger"]
["Anleggsnavn:"]
["Gateadresse:"]
["Postnummer:"]
["Poststed:"]
[]
[]
["På de følgende sidene er det forhåndsdefinerte verdier i de grønne feltene. For hurtig utfylling av skjerma, klikk på aktuell rute, og bruk \"ALT\" + \"PIL NED\" for å få opp valgmenyen. Bekreft med \"ENTER\"."]
["Slett de arkene som ikke er aktuelle for ditt anlegg."]
["Om noe er uklart i forbindelse med dette dokumentet, ta kontakt med din saksbehandler i Nortek Security & Technology AS for avklaring."]

{"sheet":"Brann","index":1,"n_rows":48,"n_cols":30,"rows_kept":48,"cut":false,"hidden":false,"merged":[[0,0,0,23],[10,0,10,32],[16,0,16,32],[0,24,1,32],[35,0,35,14],[35,15,35,19],[31,20,31,28],[32,20,32,28],[32,15,32,19],[32,0,32,14],[33,0,33,14],[33,15,33,19],[33,26,33,32],[25,20,25,32],[26,20,26,32],[27,20,27,32],[28,20,28,32],[29,29,29,32],[30,29,30,32],[31,29,31,32],[32,29,32,32],[35,29,35,32],[30,0,30,14],[31,0,31,14],[3,0,3,32],[1,0,1,23],[38,0,38,14],[38,15,38,19],[37,29,37,32],[38,29,38,32],[31,15,31,19],[30,15,30,19],[30,20,30,28],[37,0,37,14],[37,15,37,19],[4,7,4,32],[8,7,8,32],[5,7,5,18],[5,19,5,32],[6,7,6,18],[6,19,6,32],[22,27,22,32],[12,0,12,6],[13,0,13,6],[14,0,14,6],[4,0,4,6],[5,0,5,6],[6,0,6,6],[14,7,14,32],[27,0,27,14],[28,0,28,14],[29,0,29,14],[7,7,7,18],[7,19,7,32],[11,7,11,32],[7,0,7,6],[8,0,8,6],[22,20,22,26],[11,0,11,6],[25,15,25,19],[26,15,26,19],[27,15,27,19],[18,0,18,2],[28,15,28,19],[29,15,29,19],[18,7,18,9],[18,3,18,6],[21,9,21,11],[46,0,46,9],[47,0,47,9],[43,10,43,32],[44,10,44,32],[45,10,45,32],[46,10,46,32],[47,10,47,32],[40,0,40,2],[40,3,40,32],[42,0,42,32],[43,0,43,9],[44,0,44,9],[45,0,45,9],[39,15,39,19],[39,20,39,28],[39,29,39,32],[29,20,29,28],[35,20,35,28],[12,7,12,32],[13,7,13,32],[37,20,37,28],[34,0,34,14],[34,15,34,19],[36,0,36,14],[36,15,36,19],[25,0,25,14],[26,0,26,14],[23,16,23,32],[24,0,24,2],[24,20,24,32],[18,10,18,17],[24,3,24,19],[23,0,23,5],[23,6,23,8],[23,9,23,15],[21,12,21,27],[22,5,22,8],[22,0,22,4],[22,9,22,14],[22,15,22,19],[21,0,21,4],[21,5,21,8]]}
["BESTILLING AV IDRIFTSETTELSE"]
["Brannsentral"]
[]
["Kundeopplysninger"]
["Firma:",null,null,null,null,null,null,{"$f":"INFO!H5","v":0}]
["Saksbh/BAS",null,null,null,null,null,null,{"$f":"INFO!H6","v":0},null,null,null,null,null,null,null,null,null,null,null,{"$f":"INFO!AA6","v":0}]
["Telefon:",null,null,null,null,null,null,{"$f":"INFO!H7","v":0},null,null,null,null,null,null,null,null,null,null,null,{"$f":"INFO!AA7","v":0}]
["Mail:",null,null,null,null,null,null,{"$f":"INFO!H8","v":0},null,null,null,null,null,null,null,null,null,null,null,{"$f":"INFO!AA8","v":0}]
["Ordrenr:",null,null,null,null,null,null,{"$f":"INFO!H9","v":0}]
[]
["Anleggsopplysninger"]
["Anleggsnavn:",null,null,null,null,null,null,{"$f":"INFO!H12","v":0}]
["Gateadresse:",null,null,null,null,null,null,{"$f":"INFO!H13","v":0}]
["Postnummer:",null,null,null,null,null,null,{"$f":"INFO!H14","v":0}]
["Poststed:",null,null,null,null,null,null,{"$f":"INFO!H15","v":0}]
[]
["Opplysninger om idriftsettelsen"]
["NÅR"]
["UKE:",null,null,null,null,null,null,"DAG:",null,null,"Velg"]
[]
["TYPE ANLEGG"]
["Brannsentral:",null,null,null,null,"Velg",null,null,null,"Type:",null,null,"Velg"]
["Antall sløyfer:",null,null,null,null,"Velg",null,null,null,"Antall detektorer:",null,null,null,null,null,null,null,null,null,null,"Antall klokkekurser:"]
["Antall dørstyringer:",null,null,null,null,null,null,null,null,"Antall andre styringer:"]
["Annet:",null,null,null,null,null,null,null,null,null,null,null,null,null,null,null,null,null,null,null,"KOMMENTAR"]
["Er sentralen montert:",null,null,null,null,null,null,null,null,null,null,null,null,null,null,"Velg"]
["Er sentralen tilkoblet egen 230 V kurs:",null,null,null,null,null,null,null,null,null,null,null,null,null,null,"Velg"]
["Er sløyfene testet med ToolKit sløyfeverktøy:",null,null,null,null,null,null,null,null,null,null,null,null,null,null,"Velg"]
["Er sløyfene koblet i sentralen:",null,null,null,null,null,null,null,null,null,null,null,null,null,null,"Velg"]
["Er utgangene koblet til sentralen:",null,null,null,null,null,null,null,null,null,null,null,null,null,null,"Velg",null,null,null,null,"Er styringer avklart:",null,null,null,null,null,null,null,null,"Velg"]
["Er det alarmsender og er denne koblet opp:",null,null,null,null,null,null,null,null,null,null,null,null,null,null,"Velg",null,null,null,null,"Er alarmsenderen registrert:",null,null,null,null,null,null,null,null,"Velg"]
["Er det montert nøkkelsafe:",null,null,null,null,null,null,null,null,null,null,null,null,null,null,"Velg",null,null,null,null,"Koblet til alarmsender:",null,null,null,null,null,null,null,null,"Velg"]
["Skal sentralen kobles til SD anlegget:",null,null,null,null,null,null,null,null,null,null,null,null,null,null,"Velg",null,null,null,null,"Er dette klart:",null,null,null,null,null,null,null,null,"Velg"]
["Skal sentralen kobles til et IP nettverk:",null,null,null,null,null,null,null,null,null,null,null,null,null,null,"Velg",null,null,null,null,"Hva er IP adresse:"]
["Er det flere brannsentralersentraler i nettverk",null,null,null,null,null,null,null,null,null,null,null,null,null,null,"Velg",null,null,null,null,"Er pc satt opp:",null,null,null,null,null,null,null,null,"Velg"]
["Skal det settes opp toppsystem:",null,null,null,null,null,null,null,null,null,null,null,null,null,null,"Velg",null,null,null,null,"Kundetekst sendt Nortek:",null,null,null,null,null,null,null,null,"Velg"]
["Er kundetekstene skrevet:",null,null,null,null,null,null,null,null,null,null,null,null,null,null,"Velg"]
["Er det utarbeidet alarmorganisering:",null,null,null,null,null,null,null,null,null,null,null,null,null,null,"Velg"]
["Er det utarbeidet systemtegninger",null,null,null,null,null,null,null,null,null,null,null,null,null,null,"Velg"]
["Er installasjonen testet og feilfri:",null,null,null,null,null,null,null,null,null,null,null,null,null,null,"Velg",null,null,null,null,"Hvem skal rette evt feil:",null,null,null,null,null,null,null,null,"Velg"]
["Annet:"]
[]
["For Nortek S&T"]
["Anleggsnummer:"]
["Foreligger brannkonsept:"]
["Foreligger Orienteringsplan:"]
["Spesielle forhold:"]
["Tildelt tekninker:"]

{"sheet":"Nødlys","index":2,"n_rows":46,"n_cols":30,"rows_kept":46,"cut":false,"hidden":false,"merged":[[36,15,36,28],[37,15,37,28],[45,0,45,9],[45,10,45,32],[40,0,40,32],[41,0,41,9],[41,10,41,32],[42,0,42,9],[42,10,42,32],[43,0,43,9],[43,10,43,32],[44,0,44,9],[44,10,44,32],[36,0,36,10],[39,0,39,3],[39,4,39,32],[36,11,36,14],[7,0,7,6],[18,0,18,2],[18,3,18,6],[18,7,18,9],[18,10,18,17],[8,0,8,6],[8,7,8,32],[10,0,10,32],[11,0,11,6],[11,7,11,32],[12,0,12,6],[12,7,12,32],[13,0,13,6],[13,7,13,32],[14,0,14,6],[14,7,14,32],[16,0,16,32],[7,7,7,18],[7,19,7,32],[0,0,0,23],[0,24,1,32],[1,0,1,23],[3,0,3,32],[4,0,4,6],[4,7,4,32],[5,0,5,6],[6,0,6,6],[5,7,5,18],[5,19,5,32],[6,7,6,18],[6,19,6,32],[26,0,26,10],[27,0,27,10],[28,0,28,10],[29,0,29,10],[30,0,30,10],[21,0,21,10],[22,0,22,10],[23,0,23,10],[24,0,24,10],[25,0,25,10],[31,0,31,10],[32,0,32,10],[33,0,33,10],[34,0,34,10],[35,0,35,10],[33,22,33,32],[38,29,38,32],[36,29,36,32],[35,29,35,32],[34,29,34,32],[37,11,37,14],[38,11,38,14],[38,15,38,28],[37,29,37,32],[33,11,33,14],[34,11,34,14],[35,11,35,14],[34,15,34,28],[33,15,33,21],[35,15,35,28],[32,11,32,14],[32,15,32,21],[32,22,32,32],[31,22,31,32],[31,15,31,21],[30,15,30,21],[21,11,21,14],[22,11,22,14],[23,11,23,14],[24,11,24,14],[25,11,25,14],[26,11,26,14],[27,11,27,14],[28,11,28,14],[29,11,29,14],[29,15,29,21],[28,15,28,21],[27,15,27,21],[30,11,30,14],[31,11,31,14],[21,15,21,21],[21,22,21,32],[26,15,26,21],[25,15,25,21],[24,15,24,21],[23,15,23,21],[30,22,30,32],[29,22,29,32],[28,22,28,32],[27,22,27,32],[26,22,26,32],[25,22,25,32],[24,22,24,32],[23,22,23,32],[22,22,22,32],[22,15,22,21]]}
["BESTILLING AV IDRIFTSETTELSE"]
["Nødlys"]
[]
["Kundeopplysninger"]
["Firma:",null,null,null,null,null,null,{"$f":"INFO!H5","v":0}]
["Saksbh/BAS",null,null,null,null,null,null,{"$f":"INFO!H6","v":0},null,null,null,null,null,null,null,null,null,null,null,{"$f":"INFO!AA6","v":0}]
["Telefon:",null,null,null,null,null,null,{"$f":"INFO!H7","v":0},null,null,null,null,null,null,null,null,null,null,null,{"$f":"INFO!AA7","v":0}]
["Mail:",null,null,null,null,null,null,{"$f":"INFO!H8","v":0},null,null,null,null,null,null,null,null,null,null,null,{"$f":"INFO!AA8","v":0}]
["Ordrenr:",null,null,null,null,null,null,{"$f":"INFO!H9","v":0}]
[]
["Anleggsopplysninger"]
["Anleggsnavn:",null,null,null,null,null,null,{"$f":"INFO!H12","v":0}]
["Gateadresse:",null,null,null,null,null,null,{"$f":"INFO!H13","v":0}]
["Postnummer:",null,null,null,null,null,null,{"$f":"INFO!H14","v":0}]
["Poststed:",null,null,null,null,null,null,{"$f":"INFO!H15","v":0}]
[]
["Opplysninger om idriftsettelsen"]
["NÅR"]
["UKE:",null,null,null,null,null,null,"DAG:",null,null,"Velg"]
[]
["TYPE ANLEGG"]
["Sentralisert:",null,null,null,null,null,null,null,null,null,null,"Velg",null,null,null,"Type sentral:"]
["Aktivering:",null,null,null,null,null,null,null,null,null,null,"Velg",null,null,null,"Koblet ferdig:",null,null,null,null,null,null,"Velg"]
["Er sentralen koblet ferdig:",null,null,null,null,null,null,null,null,null,null,"Velg"]
["Er batteriene montert og koblet:",null,null,null,null,null,null,null,null,null,null,"Velg",null,null,null,"Antall batteri:"]
[]
["Desentralisert:",null,null,null,null,null,null,null,null,null,null,"Velg"]
["Aalto:",null,null,null,null,null,null,null,null,null,null,"Velg"]
["Backupkilde:",null,null,null,null,null,null,null,null,null,null,"Velg"]
["Antall lamper:"]
[]
[]
["Er lysberegning foretatt:",null,null,null,null,null,null,null,null,null,null,"Velg"]
["Skal nødlyset kobles til nettverk:",null,null,null,null,null,null,null,null,null,null,"Velg",null,null,null,"Hva er IP adressen:"]
["Skal det være toppsystem:",null,null,null,null,null,null,null,null,null,null,"Velg",null,null,null,"Er pc klar:",null,null,null,null,null,null,null,null,null,null,null,null,null,"Velg"]
["Er alle lampene montert og koblet:",null,null,null,null,null,null,null,null,null,null,"Velg",null,null,null,"Merket:",null,null,null,null,null,null,null,null,null,null,null,null,null,"Velg"]
["Er det skrevet tekstliste:",null,null,null,null,null,null,null,null,null,null,"Velg",null,null,null,"Tekstliste oversendt til Nortek:",null,null,null,null,null,null,null,null,null,null,null,null,null,"Velg"]
["Er det utarbeidet systemtegninger",null,null,null,null,null,null,null,null,null,null,"Velg"]
["Er installasjonen testet og feilfri:",null,null,null,null,null,null,null,null,null,null,"Velg",null,null,null,"Hvem skal rette evt feil:",null,null,null,null,null,null,null,null,null,null,null,null,null,"Velg"]
["Annet:"]
["For Nortek S&T"]
["Anleggsnummer:"]
["Foreligger brannkonsept:"]
["Foreligger Rømningsplan:"]
["Spesielle forhold:"]
["Tildelt tekninker:"]

{"sheet":"Talevarsling","index":3,"n_rows":44,"n_cols":30,"rows_kept":44,"cut":false,"hidden":false,"merged":[[30,29,30,32],[29,14,29,17],[30,14,30,17],[29,0,29,13],[30,0,30,13],[43,10,43,32],[42,0,42,9],[44,10,44,32],[43,0,43,9],[45,10,45,32],[42,10,42,32],[18,0,18,2],[18,3,18,6],[18,7,18,9],[18,10,18,17],[21,14,21,32],[27,0,27,13],[21,0,21,13],[22,0,22,13],[23,0,23,13],[24,0,24,13],[16,0,16,32],[13,0,13,6],[13,7,13,32],[14,0,14,6],[14,7,14,32],[40,0,40,32],[41,0,41,9],[41,10,41,32],[22,14,22,17],[23,14,23,17],[24,14,24,17],[25,14,25,17],[26,14,26,17],[27,14,27,17],[28,14,28,17],[30,20,30,28],[28,0,28,13],[31,0,31,13],[31,14,31,32],[25,0,25,13],[26,0,26,13],[5,0,5,6],[6,0,6,6],[7,0,7,6],[12,0,12,6],[12,7,12,32],[8,0,8,6],[8,7,8,32],[10,0,10,32],[11,0,11,6],[11,7,11,32],[5,7,5,18],[5,19,5,32],[6,7,6,18],[6,19,6,32],[7,7,7,18],[7,19,7,32],[0,0,0,23],[0,24,1,32],[1,0,1,23],[3,0,3,32],[4,0,4,6],[4,7,4,32]]}
["BESTILLING AV IDRIFTSETTELSE"]
["Talevarsling"]
[]
["Kundeopplysninger"]
["Firma:",null,null,null,null,null,null,{"$f":"INFO!H5","v":0}]
["Saksbh/BAS",null,null,null,null,null,null,{"$f":"INFO!H6","v":0},null,null,null,null,null,null,null,null,null,null,null,{"$f":"INFO!AA6","v":0}]
["Telefon:",null,null,null,null,null,null,{"$f":"INFO!H7","v":0},null,null,null,null,null,null,null,null,null,null,null,{"$f":"INFO!AA7","v":0}]
["Mail:",null,null,null,null,null,null,{"$f":"INFO!H8","v":0},null,null,null,null,null,null,null,null,null,null,null,{"$f":"INFO!AA8","v":0}]
["Ordrenr:",null,null,null,null,null,null,{"$f":"INFO!H9","v":0}]
[]
["Anleggsopplysninger"]
["Anleggsnavn:",null,null,null,null,null,null,{"$f":"INFO!H12","v":0}]
["Gateadresse:",null,null,null,null,null,null,{"$f":"INFO!H13","v":0}]
["Postnummer:",null,null,null,null,null,null,{"$f":"INFO!H14","v":0}]
["Poststed:",null,null,null,null,null,null,{"$f":"INFO!H15","v":0}]
[]
["Opplysninger om idriftsettelsen"]
["NÅR"]
["UKE:",null,null,null,null,null,null,"DAG:",null,null,"Velg"]
[]
["TYPE ANLEGG"]
["Hvilke sentral er montert:"]
["Antall kurser:",null,null,null,null,null,null,null,null,null,null,null,null,null,0,null,null,null,null," "]
["Er alle høytalere montert:",null,null,null,null,null,null,null,null,null,null,null,null,null,"Velg"]
["Foreligger plan for aktivering:",null,null,null,null,null,null,null,null,null,null,null,null,null,"Velg"]
["Skal det signal til SD anlegg:",null,null,null,null,null,null,null,null,null,null,null,null,null,"Velg"]
["Skal det signal fra brannalarmanlegg:",null,null,null,null,null,null,null,null,null,null,null,null,null,"Velg"]
["Skal det signal til innbruddsalarmanlegg:",null,null,null,null,null,null,null,null,null,null,null,null,null,"Velg"]
["Skal det signal til teleslynge:",null,null,null,null,null,null,null,null,null,null,null,null,null,"Velg"]
["Er det utarbeidet systemtegninger",null,null,null,null,null,null,null,null,null,null,null,null,null,"Velg"]
["Er installasjonen testet og feilfri:",null,null,null,null,null,null,null,null,null,null,null,null,null,"Velg",null,null,null,null,null,"Hvem skal rette evt feil:",null,null,null,null,null,null,null,null,"Velg"]
["Annet:"]
[]
[]
[]
[]
[]
[]
[]
[]
["For Nortek S&T"]
["Anleggsnummer:"]
["Spesielle forhold:"]
["Tildelt tekninker:"]

{"sheet":"Slukkeanlegg","index":4,"n_rows":45,"n_cols":30,"rows_kept":45,"cut":false,"hidden":false,"merged":[[35,20,35,28],[35,29,35,32],[31,29,31,32],[33,29,33,32],[0,0,0,23],[0,24,1,32],[1,0,1,23],[3,0,3,32],[4,0,4,6],[4,7,4,32],[5,0,5,6],[6,0,6,6],[7,0,7,6],[5,7,5,18],[5,19,5,32],[6,7,6,18],[6,19,6,32],[7,7,7,18],[7,19,7,32],[18,0,18,2],[18,3,18,6],[18,7,18,9],[18,10,18,17],[8,0,8,6],[8,7,8,32],[10,0,10,32],[11,0,11,6],[11,7,11,32],[12,0,12,6],[12,7,12,32],[13,0,13,6],[13,7,13,32],[14,0,14,6],[14,7,14,32],[16,0,16,32],[23,0,23,2],[23,3,23,19],[23,20,23,32],[21,0,21,4],[21,5,21,8],[21,9,21,11],[21,12,21,27],[22,0,22,4],[22,5,22,8],[22,9,22,14],[22,15,22,19],[22,20,22,26],[22,27,22,32],[24,0,24,14],[24,15,24,19],[24,20,24,32],[25,0,25,14],[25,15,25,19],[25,20,25,32],[26,0,26,14],[26,15,26,19],[26,20,26,32],[27,0,27,14],[27,15,27,19],[27,20,27,32],[28,0,28,14],[28,15,28,19],[28,20,28,32],[29,0,29,14],[29,15,29,19],[29,20,29,28],[29,29,29,31],[30,0,30,14],[30,15,30,19],[30,20,30,28],[30,29,30,31],[31,0,31,14],[31,15,31,19],[31,20,31,28],[41,0,41,9],[41,10,41,32],[32,0,32,14],[32,15,32,19],[32,26,32,32],[33,0,33,14],[33,15,33,19],[33,20,33,28],[37,0,37,2],[37,3,37,32],[39,0,39,32],[40,0,40,9],[40,10,40,32],[34,0,34,14],[34,15,34,19],[35,15,35,19],[42,0,42,9],[42,10,42,32],[43,0,43,9],[43,10,43,32],[44,0,44,9],[44,10,44,32]]}
["BESTILLING AV IDRIFTSETTELSE"]
["Slukkeanlegg"]
[]
["Kundeopplysninger"]
["Firma:",null,null,null,null,null,null,{"$f":"INFO!H5","v":0}]
["Saksbh/BAS",null,null,null,null,null,null,{"$f":"INFO!H6","v":0},null,null,null,null,null,null,null,null,null,null,null,{"$f":"INFO!AA6","v":0}]
["Telefon:",null,null,null,null,null,null,{"$f":"INFO!H7","v":0},null,null,null,null,null,null,null,null,null,null,null,{"$f":"INFO!AA7","v":0}]
["Mail:",null,null,null,null,null,null,{"$f":"INFO!H8","v":0},null,null,null,null,null,null,null,null,null,null,null,{"$f":"INFO!AA8","v":0}]
["Ordrenr:",null,null,null,null,null,null,{"$f":"INFO!H9","v":0}]
[]
["Anleggsopplysninger"]
["Anleggsnavn:",null,null,null,null,null,null,{"$f":"INFO!H12","v":0}]
["Gateadresse:",null,null,null,null,null,null,{"$f":"INFO!H13","v":0}]
["Postnummer:",null,null,null,null,null,null,{"$f":"INFO!H14","v":0}]
["Poststed:",null,null,null,null,null,null,{"$f":"INFO!H15","v":0}]
[]
["Opplysninger om idriftsettelsen"]
["NÅR"]
["UKE:",null,null,null,null,null,null,"DAG:",null,null,"Velg"]
[]
["TYPE ANLEGG"]
["Brannsentral:",null,null,null,null,"Velg"]
["Antall sløyfer:",null,null,null,null,"Velg",null,null,null,"Antall detektorer:",null,null,null,null,null,null,null,null,null,null,"Antall klokkekurser:"]
["Annet:",null,null,null,null,null,null,null,null,null,null,null,null,null,null,null,null,null,null,null,"KOMMENTAR"]
["Er sentralen montert:",null,null,null,null,null,null,null,null,null,null,null,null,null,null,"Velg"]
["Er sentralen tilkoblet egen 230 V kurs:",null,null,null,null,null,null,null,null,null,null,null,null,null,null,"Velg"]
["Er sløyfene testet med ToolKit sløyfeverktøy:",null,null,null,null,null,null,null,null,null,null,null,null,null,null,"Velg"]
["Er sløyfene koblet i sentralen:",null,null,null,null,null,null,null,null,null,null,null,null,null,null,"Velg"]
["Er utgangene koblet til sentralen:",null,null,null,null,null,null,null,null,null,null,null,null,null,null,"Velg"]
["Er generatorene montert og tilkoblet:",null,null,null,null,null,null,null,null,null,null,null,null,null,null,"Velg"]
["Er nøkkelbryter montert og tilkoblet:",null,null,null,null,null,null,null,null,null,null,null,null,null,null,"Velg"]
["Skal sentralen kobles til SD anlegget:",null,null,null,null,null,null,null,null,null,null,null,null,null,null,"Velg",null,null,null,null,"Er dette klart:",null,null,null,null,null,null,null,null,"Velg"]
["Skal sentralen kobles til et IP nettverk:",null,null,null,null,null,null,null,null,null,null,null,null,null,null,"Velg",null,null,null,null,"Hva er IP adresse:"]
["Skal det settes opp toppsystem:",null,null,null,null,null,null,null,null,null,null,null,null,null,null,"Velg",null,null,null,null,"Er pc satt opp:",null,null,null,null,null,null,null,null,"Velg"]
["Er det utarbeidet systemtegninger",null,null,null,null,null,null,null,null,null,null,null,null,null,null,"Velg"]
["Er installasjonen testet og feilfri:",null,null,null,null,null,null,null,null,null,null,null,null,null,null,"Velg",null,null,null,null,"Hvem skal rette evt feil:",null,null,null,null,null,null,null,null,"Velg"]
[]
["Annet:"]
[]
["For Nortek S&T"]
["Anleggsnummer:"]
["Foreligger brannkonsept:"]
["Hvem lager Orienteringsplan:"]
["Spesielle forhold:"]
["Tildelt tekninker:"]